bitfinex/quotes_SOLUSD_20250118
["timestamp","ask_amount","ask_price","bid_price","bid_amount"]
[1737224231769,31.24143289,253.96,253.86,3.939]
[1737224232067,31.24143289,253.87,253.82,0.03]
[1737224232278,23.776884,253.89,253.82,0.03]
[1737224232279,31.24143289,253.83,253.82,0.03]
[1737224232653,31.24143289,253.91,253.82,0.03]
[1737224232857,31.24143289,253.93,253.83,3.9396]
[1737224233052,31.24143289,254.02,253.82,31.86234676]
[1737224233053,31.24143289,253.91,253.82,0.03]
[1737224233248,31.24143289,253.9,253.82,3.9697]
[1737224233459,31.24143289,253.93,253.82,35.21113289]
[1737224233659,31.24143289,253.91,253.82,3.9697]
[1737224233878,31.24143289,253.91,253.83,0.59095077]
[1737224234065,31.24143289,253.93,253.83,0.59095077]
[1737224234374,31.24143289,254.03,253.92,31.24143289]
[1737224234561,31.24143289,254.05,253.94,31.24143289]
[1737224234764,31.24143289,254.03,253.92,31.24143289]
[1737224234963,31.24143289,254.05,253.94,31.24143289]
[1737224235151,31.24143289,254.03,253.92,31.24143289]
[1737224235350,31.24143289,254.03,253.94,31.24143289]
[1737224235569,31.24143289,254.01,253.93,20.0]
[1737224235767,31.24143289,254.15,253.98,31.24143289]
[1737224235768,31.24143289,254.09,253.98,31.24143289]
[1737224235956,31.24143289,254.09,253.99,0.5904604]
[1737224236263,31.24143289,254.15,254.04,31.24143289]
[1737224236455,31.24143289,254.17,254.06,31.24143289]
[1737224237165,31.24143289,254.17,254.07,0.59034695]
[1737224237370,5.68,254.33,254.1,31.24143289]
[1737224237573,31.24143289,254.18,254.09,20.0]
[1737224237771,31.24143289,254.18,254.1,3.9354]
[1737224238165,31.24143289,254.28,254.02,31.24143289]
[1737224238166,31.24143289,254.12,254.02,31.24143289]
[1737224238369,31.24143289,254.12,254.01,31.24143289]
[1737224238570,31.24143289,254.12,254.02,0.59040304]
[1737224238774,31.24143289,254.16,254.06,20.0]
[1737224238975,31.24143289,254.16,254.06,20.5903157]
[1737224239175,31.24143289,254.16,254.08,31.24143289]
[1737224239376,31.24143289,254.19,254.08,31.83170421]
[1737224239584,31.24143289,254.21,254.1,31.24143289]
[1737224240255,31.24143289,254.25,254.14,31.24143289]
[1737224240455,31.24143289,254.41,254.11,9.8382]
[1737224240456,3.9311,254.38,254.2,31.24143289]
[1737224240663,31.24143289,254.36,254.24,31.24143289]
[1737224241079,31.24143289,254.36,254.26,31.24143289]
[1737224241280,31.24143289,254.32,254.21,31.24143289]
[1737224242372,31.24143289,254.34,254.23,31.24143289]
[1737224242675,31.24143289,254.36,254.25,31.24143289]
[1737224243474,43.776884,254.31,254.21,31.24143289]
[1737224243762,23.776884,254.22,254.13,31.24143289]
[1737224243961,31.24143289,254.25,254.14,0.59016454]
[1737224244366,31.24143289,254.23,254.11,31.24143289]
[1737224244673,23.776884,254.2,254.11,31.24143289]
[1737224245077,31.24143289,254.21,254.11,31.24143289]
[1737224245281,2.33227999,254.45,254.15,31.24143289]
[1737224245282,31.24143289,254.27,254.15,31.24143289]
[1737224245470,23.776884,254.26,254.15,31.24143289]
[1737224246268,5.66,254.38,254.07,6.1799]
[1737224246269,31.24143289,254.18,254.13,0.59012282]
[1737224246470,20.0,254.06,253.97,6.1799]
[1737224246782,31.24143289,254.04,253.97,6.1799]
[1737224246981,31.24143289,254.04,253.97,10.1172]
[1737224247166,31.24143289,254.1,253.98,31.83202061]
[1737224247365,31.24143289,254.12,254.01,31.24143289]
[1737224247566,31.24143289,254.14,254.03,31.24143289]
[1737224248082,31.24143289,254.2,254.09,31.24143289]
[1737224248282,31.24143289,254.2,254.1,3.9354]
[1737224248988,31.24143289,254.11,253.98,31.24143289]
[1737224249166,31.24143289,254.13,254.02,31.24143289]
[1737224249368,31.24143289,254.2,254.09,31.24143289]
[1737224249580,3.9329,254.26,254.13,31.24143289]
[1737224249788,31.24143289,254.19,254.09,31.24143289]
[1737224250090,31.24143289,254.17,254.07,31.24143289]
[1737224250381,23.776884,254.16,254.06,3.9359]
[1737224250579,31.24143289,254.13,254.03,31.24143289]
[1737224250766,31.24143289,254.13,254.04,0.59043112]
[1737224250968,31.24143289,254.15,254.04,0.59043112]
[1737224251170,31.24143289,254.19,254.09,31.24143289]
[1737224251484,31.24143289,254.17,254.07,31.24143289]
[1737224251678,23.776884,254.08,253.98,4.52750554]
[1737224251871,31.24143289,254.05,253.95,3.9376]
[1737224252183,31.24143289,254.03,253.92,31.24143289]
[1737224252376,31.24143289,254.03,253.94,35.17933289]
[1737224252577,35.17803289,254.03,253.92,35.17953289]
[1737224252764,9.8391,254.09,253.98,31.24143289]
[1737224252765,31.24143289,254.09,253.98,31.24143289]
[1737224252970,31.24143289,254.09,253.99,0.59050637]
[1737224253176,31.24143289,254.09,253.99,0.59049191]
[1737224253380,31.24143289,254.18,254.09,20.0]
[1737224253578,31.24143289,254.24,254.12,31.24143289]
[1737224253769,31.24143289,254.24,254.14,31.24143289]
[1737224253967,31.24143289,254.22,254.12,31.24143289]
[1737224254276,31.24143289,254.17,254.11,6.2827]
[1737224254477,19.6689225,254.25,254.16,31.24143289]
[1737224254679,31.24143289,254.21,254.12,4.52529124]
[1737224254889,31.24143289,254.21,254.12,3.9351]
[1737224255083,31.24143289,254.19,254.11,6.2827]
[1737224255379,31.24143289,254.13,253.94,3.9379]
[1737224255683,31.24143289,254.05,253.95,0.5904942]
[1737224255882,31.24143289,254.05,253.95,0.59057348]
[1737224256066,31.24143289,253.97,253.87,0.59050758]
[1737224256399,23.776884,253.88,253.82,6.3127]
[1737224256689,23.776884,253.83,253.71,6.2827]
[1737224256885,31.24143289,253.81,253.72,0.59117753]
[1737224257182,31.24143289,253.93,253.8,31.24143289]
[1737224257375,31.24143289,253.93,253.83,31.24143289]
[1737224257566,31.24143289,253.93,253.84,0.59086792]
[1737224257771,31.24143289,253.95,253.85,31.24143289]
[1737224257985,31.24143289,253.97,253.86,0.59072449]
[1737224258381,31.24143289,253.97,253.88,20.0]
[1737224259083,31.24143289,253.89,253.83,0.03]
[1737224259276,31.24143289,253.95,253.85,31.24143289]
[1737224259469,31.24143289,253.97,253.86,0.59068463]
[1737224259669,31.24143289,253.97,253.88,20.0]
[1737224259869,31.24143289,253.97,253.89,0.59071674]
[1737224260275,31.24143289,253.97,253.88,20.0]
[1737224260276,31.24143289,253.93,253.83,3.9695]
[1737224260486,3.937,254.0,253.84,0.59080738]
[1737224260487,31.24143289,253.91,253.84,0.59080738]
[1737224260690,31.24143289,253.91,253.83,0.03]
[1737224260896,31.24143289,253.89,253.83,0.03]
[1737224261396,31.24143289,253.91,253.83,3.9696]
[1737224261599,31.24143289,253.89,253.78,31.24143289]
[1737224261774,13.7789,254.01,253.79,0.59094441]
[1737224261775,31.24143289,253.87,253.79,0.59094441]
[1737224261977,31.24143289,253.83,253.75,0.59094733]
[1737224262192,31.24143289,253.83,253.75,0.59104094]
[1737224262398,31.24143289,253.85,253.75,0.59104094]
[1737224262690,23.776884,253.8,253.71,6.2827]
[1737224262895,31.24143289,253.78,253.71,6.87381412]
[1737224263076,0.59082534,253.77,253.69,4.53282095]
[1737224263276,31.24143289,253.78,253.71,20.0]
[1737224263476,31.24143289,253.78,253.7,0.59111095]
[1737224263681,0.59082534,253.77,253.7,0.59111095]
[1737224263920,31.24143289,253.78,253.7,0.59111095]
[1737224264200,0.59082534,253.88,253.8,20.0]
[1737224264375,31.24143289,253.94,253.83,31.24143289]
[1737224264573,31.24143289,253.9,253.81,31.83218434]
[1737224264784,31.24143289,253.86,253.8,3.94]
[1737224264996,31.24143289,253.86,253.78,6.7353]
[1737224264997,0.59082534,253.85,253.78,10.6756]
[1737224265293,31.24143289,253.79,253.68,6.7353]
[1737224265603,31.24143289,253.75,253.68,10.6771]
[1737224265781,31.24143289,253.75,253.69,0.59120508]
[1737224265982,31.24143289,253.75,253.68,11.26829069]
[1737224266272,31.24143289,253.79,253.71,20.0]
[1737224266581,31.24143289,253.79,253.68,21.12319069]
[1737224266582,0.59082534,253.88,253.72,0.59119288]
[1737224266893,31.24143289,253.73,253.67,0.03]
[1737224267073,31.24143289,253.71,253.67,0.03]
[1737224267274,20.0,253.84,253.67,3.972]
[1737224267577,31.24143289,253.73,253.67,3.972]
[1737224267801,0.59082534,253.72,253.67,3.972]
[1737224268000,31.24143289,253.68,253.67,0.03]
[1737224268204,31.24143289,253.7,253.67,0.03]
[1737224268398,51.24143289,253.68,253.67,0.03]
[1737224268827,31.24143289,253.68,253.67,0.03]
[1737224269296,31.24143289,253.7,253.67,0.03]
[1737224269506,0.59082534,253.69,253.67,0.03]
[1737224269809,31.24143289,253.7,253.67,0.03]
[1737224270012,0.59082534,253.69,253.67,0.03]
[1737224271013,31.24143289,253.68,253.67,0.03]
[1737224272024,23.776884,253.67,253.62,0.22376559]
[1737224272220,31.24143289,253.63,253.62,0.22376559]
[1737224272718,31.24143289,253.63,253.35,1.57767]
[1737224272719,11.8,253.56,253.41,0.03]
[1737224272926,11.8,253.56,253.28,3.9481]
[1737224272927,31.24143289,253.42,253.23,31.24143289]
[1737224273123,31.24143289,253.5,253.19,31.24143289]
[1737224273124,20.0,253.32,253.19,31.24143289]
[1737224273331,31.24143289,253.32,253.17,3.9498]
[1737224273501,20.0,253.29,253.14,3.9503]
[1737224273702,31.24143289,253.27,253.15,31.24143289]
[1737224273899,31.24143289,253.23,253.11,35.19213289]
[1737224274122,31.24143289,253.19,253.11,3.9507]
[1737224274422,0.59082534,253.18,253.13,31.24143289]
[1737224274625,31.24143289,253.22,253.11,35.19213289]
[1737224274804,0.59082534,253.21,253.11,3.9507]
[1737224275121,0.59082534,253.21,253.11,35.19213289]
[1737224275319,0.59082534,253.21,253.09,0.59259569]
[1737224275320,31.24143289,253.19,253.09,3.9511]
[1737224275506,0.59082534,253.18,253.09,3.9511]
[1737224276605,31.24143289,253.17,253.09,3.9511]
[1737224276802,0.59082534,253.16,253.05,35.19303289]
[1737224277423,0.59082534,253.23,253.13,31.24143289]
[1737224278515,0.59082534,253.24,253.13,31.24143289]
[1737224278820,0.59082534,253.24,253.15,31.24143289]
[1737224279223,24.36770934,253.24,253.13,31.24143289]
[1737224279418,31.24143289,253.19,253.09,3.9511]
[1737224279620,0.59082534,253.18,253.09,3.9511]
[1737224280616,31.83225823,253.33,253.18,23.776884]
[1737224280922,0.59082534,253.32,253.22,31.24143289]
[1737224281126,0.59082534,253.38,253.31,31.24143289]
[1737224281319,0.59082534,253.44,253.36,31.24143289]
[1737224281512,0.59082534,253.44,253.33,13.8159]
[1737224281513,0.59082534,253.44,253.34,31.24143289]
[1737224281720,31.24143289,253.43,253.33,3.9474]
[1737224281919,0.59082534,253.42,253.33,3.9474]
[1737224282115,0.59082534,253.42,253.37,31.24143289]
[1737224282425,0.59082534,253.48,253.37,31.24143289]
[1737224282626,31.24143289,253.43,253.33,3.9474]
[1737224282925,0.59082534,253.42,253.31,31.24143289]
[1737224283115,31.24143289,253.39,253.27,31.24143289]
[1737224283314,31.24143289,253.5,253.31,31.24143289]
[1737224283315,0.59082534,253.38,253.31,31.24143289]
[1737224283531,0.59082534,253.4,253.34,31.24143289]
[1737224283713,20.59082534,253.4,253.3,31.24143289]
[1737224283913,0.59082534,253.4,253.34,31.24143289]
[1737224284118,0.59082534,253.44,253.34,31.24143289]
[1737224284828,20.0,253.42,253.34,31.24143289]
[1737224285132,31.24143289,253.45,253.34,31.24143289]
[1737224285133,0.59082534,253.41,253.34,31.24143289]
[1737224285308,0.59082534,253.44,253.37,31.24143289]
[1737224285503,31.24143289,253.44,253.33,31.24143289]
[1737224285716,0.59082534,253.43,253.33,31.24143289]
[1737224286136,0.59082534,253.43,253.39,31.24143289]
[1737224286338,31.24143289,253.51,253.39,31.24143289]
[1737224286339,31.24143289,253.49,253.39,31.24143289]
[1737224286627,0.59082534,253.48,253.45,31.24143289]
[1737224286814,0.59082534,253.54,253.45,31.24143289]
[1737224287206,31.24143289,253.53,253.41,31.24143289]
[1737224287407,0.59082534,253.52,253.43,31.24143289]
[1737224288031,0.59082534,253.52,253.41,31.24143289]
[1737224288809,0.59082534,253.52,253.43,31.24143289]
[1737224289211,0.59082534,253.52,253.43,35.18713289]
[1737224289506,0.59082534,253.54,253.48,31.24143289]
[1737224289711,0.59082534,253.58,253.48,31.24143289]
[1737224289911,31.24143289,253.57,253.46,31.24143289]
[1737224290135,0.59082534,253.56,253.46,31.24143289]
[1737224290518,23.776884,253.54,253.38,0.59182097]
[1737224290723,31.24143289,253.51,253.4,31.24143289]
[1737224291034,0.59082534,253.5,253.44,31.24143289]
[1737224291335,20.0,253.5,253.42,31.24143289]
[1737224291514,0.59082534,253.49,253.42,35.18733289]
[1737224292425,31.83225823,253.49,253.38,31.24143289]
[1737224292936,20.0,253.44,253.34,31.24143289]
[1737224293140,31.24143289,253.35,253.19,0.59211643]
[1737224293431,35.77815823,253.43,253.32,31.24143289]
[1737224293822,20.0,253.4,253.3,31.24143289]
[1737224294020,0.59082534,253.39,253.3,31.24143289]
[1737224294208,20.0,253.38,253.3,31.24143289]
[1737224294411,20.0,253.38,253.21,31.24143289]
[1737224294412,51.24143289,253.32,253.21,31.24143289]
[1737224294736,0.59082534,253.37,253.15,0.03]
[1737224294737,20.0,253.21,253.15,0.03]
[1737224294937,20.59082534,253.2,253.15,0.03]
[1737224295145,43.776884,253.19,253.15,0.03]
[1737224295314,0.59082534,253.18,253.15,0.03]
[1737224295644,0.59082534,253.23,253.17,31.24143289]
[1737224295930,0.59082534,253.29,253.19,31.24143289]
[1737224296316,0.59082534,253.29,253.21,31.24143289]
[1737224296516,20.59082534,253.29,253.21,31.24143289]
[1737224297234,20.59082534,253.29,253.15,0.62245984]
[1737224297434,31.24143289,253.28,253.17,31.24143289]
[1737224297740,20.0,253.23,253.15,0.03]
[1737224297942,0.59082534,253.22,253.15,0.03]
[1737224298318,0.59082534,253.22,253.15,31.27143289]
[1737224298926,0.59082534,253.25,253.15,31.27143289]
[1737224299545,31.24143289,253.24,253.15,0.03]
[1737224299745,0.59082534,253.23,253.15,0.03]
[1737224300240,0.59082534,253.23,253.16,0.59255452]
[1737224300456,31.24143289,253.29,253.19,31.24143289]
[1737224300656,0.59082534,253.28,253.23,31.24143289]
[1737224300825,0.59082534,253.33,253.23,31.24143289]
[1737224301027,31.24143289,253.3,253.19,31.24143289]
[1737224301223,0.59082534,253.29,253.2,0.59242529]
[1737224301545,0.59082534,253.29,253.15,0.03]
[1737224301546,31.24143289,253.22,253.15,0.03]
[1737224301849,3.9489,253.24,253.15,0.03]
[1737224301850,31.24143289,253.18,253.15,0.03]
[1737224302042,0.59082534,253.17,253.15,0.03]
[1737224302351,0.59082534,253.19,253.15,0.03]
[1737224302548,31.24143289,253.28,253.17,31.24143289]
[1737224302845,0.59082534,253.27,253.17,31.24143289]
[1737224303045,0.59082534,253.27,253.19,31.24143289]
[1737224303245,0.59082534,253.29,253.21,31.24143289]
[1737224303456,0.59082534,253.29,253.19,31.24143289]
[1737224303655,0.59082534,253.29,253.21,31.24143289]
[1737224303954,0.59082534,253.31,253.24,31.24143289]
[1737224304330,0.59082534,253.33,253.24,31.24143289]
[1737224304753,31.24143289,253.32,253.22,35.19043289]
[1737224304960,31.24143289,253.3,253.18,31.24143289]
[1737224305130,0.59082534,253.29,253.22,31.24143289]
[1737224305939,0.59082534,253.31,253.22,31.24143289]
[1737224306139,0.59082534,253.31,253.2,31.24143289]
[1737224307039,0.59082534,253.31,253.23,3.9489]
[1737224307349,31.24143289,253.32,253.24,31.24143289]
[1737224307350,0.59082534,253.32,253.24,31.24143289]
[1737224307548,31.83225823,253.32,253.23,3.9489]
[1737224307757,0.063,253.42,253.23,3.9489]
[1737224307758,35.77865823,253.4,253.28,31.24143289]
[1737224308060,31.24143289,253.38,253.28,31.24143289]
[1737224308256,23.776884,253.24,253.14,15.793091]
[1737224308463,0.74085964,253.23,253.01,31.24143289]
[1737224308664,31.24143289,253.17,253.05,31.24143289]
[1737224308841,0.74087718,253.16,253.07,31.24143289]
[1737224309355,0.74087718,253.16,253.11,31.24143289]
[1737224309566,0.74072006,253.2,253.11,31.24143289]
[1737224310057,0.74072006,253.2,253.04,0.29851478]
[1737224310058,0.74072006,253.2,253.09,31.24143289]
[1737224310262,35.19103289,253.19,253.07,31.24143289]
[1737224310561,0.74086236,253.18,253.11,31.24143289]
[1737224310753,0.74086236,253.18,253.09,31.24143289]
[1737224311062,0.74076529,253.19,253.13,31.24143289]
[1737224311246,0.74065548,253.24,253.15,31.24143289]
[1737224311556,4.68955548,253.24,253.13,31.24143289]
[1737224311764,31.24143289,253.16,253.02,0.29823733]
[1737224311942,0.74089037,253.15,253.07,31.24143289]
[1737224312141,3.9489,253.24,252.9,0.29865405]
[1737224312142,31.24143289,253.08,252.9,0.29865405]
[1737224312342,31.24143289,253.06,252.94,31.24143289]
[1737224312542,31.24143289,253.04,252.92,31.24143289]
[1737224312767,31.24143289,253.04,252.91,4.25304883]
[1737224312768,0.74125011,253.03,252.94,31.24143289]
[1737224312969,31.24143289,253.1,253.01,20.0]
[1737224313169,0.74098709,253.09,253.01,23.9522]
[1737224313476,0.74098709,253.09,252.99,3.9527]
[1737224314160,31.24143289,253.12,253.02,31.24143289]
[1737224314348,31.24143289,253.24,253.0,31.24143289]
[1737224314349,31.24143289,253.1,253.0,31.24143289]
[1737224314559,31.24143289,253.14,253.02,31.24143289]
[1737224314756,0.74088345,253.13,253.04,31.24143289]
[1737224314965,0.74086141,253.15,253.06,31.24143289]
[1737224315159,0.74086141,253.15,253.07,3.9514]
[1737224315852,0.74086141,253.15,253.08,31.54011222]
[1737224316050,31.24143289,253.24,253.14,31.24143289]
[1737224316254,0.74057268,253.23,253.18,31.24143289]
[1737224316567,31.24143289,253.28,253.18,31.24143289]
[1737224316568,0.74051849,253.27,253.18,31.24143289]
[1737224316753,31.24143289,253.32,253.2,31.24143289]
[1737224316946,0.74037539,253.31,253.2,31.24143289]
[1737224317151,31.24143289,253.3,253.19,3.9495]
[1737224317365,0.74045332,253.29,253.19,3.9495]
[1737224318177,31.24143289,253.24,253.14,35.19163289]
[1737224318467,31.24143289,253.22,253.12,31.24143289]
[1737224318673,31.24143289,253.2,253.08,31.24143289]
[1737224318873,0.74068993,253.19,253.1,31.24143289]
[1737224319174,31.24143289,253.18,253.06,51.5399958]
[1737224319351,31.24143289,253.22,253.1,31.24143289]
[1737224319558,0.74067234,253.21,253.12,31.24143289]
[1737224320247,31.24143289,253.2,253.08,0.29828887]
[1737224320459,31.24143289,253.18,253.07,3.9514]
[1737224320682,31.24143289,253.24,253.13,31.24143289]
[1737224320858,0.74081608,253.35,253.23,31.24143289]
[1737224320859,31.24143289,253.33,253.23,31.24143289]
[1737224321047,3.9462,253.41,253.27,31.24143289]
[1737224321274,0.80330722,253.42,253.29,13.8177]
[1737224321275,0.74018413,253.4,253.29,13.8177]
[1737224321474,31.24143289,253.37,253.27,35.18963289]
[1737224321653,31.24143289,253.33,253.25,3.9485]
[1737224321853,0.74034604,253.32,253.25,3.9485]
[1737224322067,31.24143289,253.37,253.26,0.29764966]
[1737224322268,0.74022994,253.36,253.27,31.24143289]
[1737224322470,31.24143289,253.35,253.25,3.9485]
[1737224322652,31.24143289,253.33,253.23,31.24143289]
[1737224322860,0.74035083,253.32,253.23,35.19023289]
[1737224323151,0.74035083,253.32,253.23,3.9488]
[1737224323352,0.74035083,253.32,253.23,35.19023289]
[1737224323671,0.74028501,253.34,253.27,31.24143289]
[1737224324170,0.74028501,253.34,253.25,31.24143289]
[1737224324358,0.74028501,253.34,253.26,0.29755476]
[1737224324558,0.7402339,253.36,253.26,0.29755476]
[1737224324881,0.7402339,253.36,253.29,31.24143289]
[1737224325368,0.7402339,253.36,253.28,3.9481]
[1737224325578,0.74019068,253.38,253.27,31.24143289]
[1737224325949,31.24143289,253.31,253.21,31.24143289]
[1737224326152,0.74037961,253.3,253.22,0.29783387]
[1737224326354,31.24143289,253.29,253.18,0.29776043]
[1737224326554,0.74047982,253.28,253.19,31.24143289]
[1737224326973,31.24143289,253.27,253.17,31.24143289]
[1737224327164,31.24143289,253.25,253.17,3.9498]
[1737224327364,31.24143289,253.23,253.13,31.24143289]
[1737224327681,0.74071222,253.22,253.14,3.9503]
[1737224327982,0.74062768,253.24,253.14,3.9503]
[1737224328355,31.24143289,253.33,253.23,31.24143289]
[1737224328550,31.24143289,253.37,253.27,31.24143289]
[1737224328760,0.74023747,253.36,253.29,31.24143289]
[1737224328958,0.74018247,253.4,253.31,31.24143289]
[1737224329263,31.24143289,253.35,253.23,31.24143289]
[1737224329461,0.74035553,253.34,253.23,31.24143289]
[1737224329760,0.74035553,253.34,253.25,31.24143289]
[1737224330166,0.74035553,253.34,253.24,3.9488]
[1737224330366,0.74035553,253.34,253.25,31.24143289]
[1737224330957,0.063,253.28,253.25,31.53904759]
[1737224331163,0.063,253.28,253.25,31.24143289]
[1737224331488,0.063,253.28,253.25,31.53913175]
[1737224331774,0.063,253.28,253.24,3.9488]
[1737224331966,0.063,253.28,253.25,31.24143289]
[1737224332164,0.063,253.28,253.27,31.24143289]
[1737224332374,0.063,253.28,253.24,3.9488]
[1737224333461,31.24143289,253.26,253.16,3.95]
[1737224333656,31.24143289,253.2,253.09,31.24143289]
[1737224333962,31.24143289,253.14,253.05,3.9516]
[1737224334157,31.24143289,253.14,253.02,31.24143289]
[1737224334368,31.24143289,253.19,253.08,31.24143289]
[1737224334583,0.74081562,253.18,253.08,31.24143289]
[1737224334783,31.24143289,253.17,253.07,3.9514]
[1737224335075,0.74082408,253.16,253.09,3.9511]
[1737224335377,31.24143289,253.19,252.85,31.24143289]
[1737224335378,18.9942,253.13,252.85,31.24143289]
[1737224335577,0.03,252.89,252.82,31.24143289]
[1737224335770,31.27143289,252.89,252.77,0.30007666]
[1737224335975,31.27143289,252.89,252.74,5.88894527]
[1737224335976,31.24143289,252.87,252.74,37.13037816]
[1737224336167,31.24143289,252.85,252.74,37.13037816]
[1737224336478,0.03,252.89,252.78,31.24143289]
[1737224336662,0.03,252.89,252.8,31.24143289]
[1737224336663,0.77162463,252.89,252.8,31.24143289]
[1737224336857,0.77162463,252.89,252.78,31.24143289]
[1737224337066,0.77162463,252.89,252.8,31.24143289]
[1737224337264,31.24143289,252.87,252.76,0.3002583]
[1737224337473,0.74171917,252.86,252.75,31.24143289]
[1737224337678,3.9549,252.85,252.75,31.24143289]
[1737224337882,0.74181924,252.84,252.75,31.24143289]
[1737224338469,0.74181924,252.84,252.69,0.30046184]
[1737224338470,31.24143289,252.83,252.72,31.24143289]
[1737224338677,0.74192453,252.82,252.72,31.24143289]
[1737224338862,0.74192453,252.82,252.7,31.24143289]
[1737224339058,0.74192453,252.82,252.74,31.24143289]
[1737224339263,0.74183171,252.84,252.76,31.24143289]
[1737224339476,3.9553,252.82,252.69,0.30076021]
[1737224339789,3.9553,252.82,252.68,0.03]
[1737224339790,31.24143289,252.7,252.68,0.03]
[1737224340080,0.74215393,252.69,252.68,0.03]
[1737224340471,31.24143289,252.61,252.51,0.30136839]
[1737224340674,0.74238969,252.6,252.52,31.24143289]
[1737224340874,0.74238969,252.6,252.46,6.5882]
[1737224340875,0.74235486,252.6,252.47,3.9608]
[1737224341064,0.74235486,252.6,252.46,6.5882]
[1737224341065,31.24143289,252.59,252.48,31.24143289]
[1737224341264,31.24143289,252.54,252.42,31.24143289]
[1737224341462,31.24143289,252.56,252.46,31.24143289]
[1737224341679,0.7425235,252.55,252.46,31.24143289]
[1737224341880,31.24143289,252.54,252.45,3.9611]
[1737224342185,0.74266271,252.53,252.44,31.24143289]
[1737224342389,31.24143289,252.52,252.42,3.9616]
[1737224342683,0.74266271,252.53,252.43,0.30255535]
[1737224342684,31.24143289,252.53,252.43,0.30255535]
[1737224342874,0.74285342,252.56,252.39,13.8673]
[1737224342875,31.24143289,252.48,252.42,0.30229914]
[1737224343073,0.74268227,252.47,252.4,31.24143289]
[1737224343385,0.74286785,252.51,252.42,31.24143289]
[1737224343572,0.74275736,252.53,252.44,31.24143289]
[1737224343770,9.8938,252.69,252.43,3.9614]
[1737224343771,31.24143289,252.58,252.46,31.24143289]
[1737224343971,31.24143289,252.58,252.48,31.24143289]
[1737224343972,0.74255877,252.57,252.48,31.24143289]
[1737224344183,31.24143289,252.56,252.44,31.54346539]
[1737224344391,31.24143289,252.47,252.36,31.24143289]
[1737224344688,0.74284185,252.46,252.36,31.24143289]
[1737224344887,0.74284185,252.46,252.36,31.54424414]
[1737224345084,31.5540904,252.39,252.28,31.5540904]
[1737224345268,31.5540904,252.35,252.25,3.9642]
[1737224345591,31.5540904,252.31,252.2,35.5189904]
[1737224345784,0.74341127,252.3,252.2,35.5189904]
[1737224346174,31.5540904,252.35,252.24,31.5540904]
[1737224346474,1.619,252.44,252.21,0.30372969]
[1737224346475,31.5540904,252.31,252.21,31.5540904]
[1737224346685,0.74336109,252.3,252.23,12.27311113]
[1737224346880,0.74325034,252.32,252.2,13.8776]
[1737224347076,31.5540904,252.34,252.24,31.5540904]
[1737224347282,0.74322875,252.33,252.24,31.5540904]
[1737224347476,0.74322875,252.33,252.22,31.5540904]
[1737224347677,32.29732084,252.38,252.26,31.5540904]
[1737224348190,0.74323044,252.38,252.28,31.5540904]
[1737224348391,0.74309211,252.44,252.34,31.5540904]
[1737224348688,31.5540904,252.4,252.3,31.5540904]
[1737224349004,0.74309111,252.39,252.21,0.30325688]
[1737224349178,31.5540904,252.37,252.15,0.3032845]
[1737224349379,31.5540904,252.35,252.24,31.5540904]
[1737224349691,0.74327161,252.34,252.24,35.5183904]
[1737224349868,31.5540904,252.33,252.2,3.9651]
[1737224350075,31.5540904,252.31,252.19,31.5540904]
[1737224350275,0.74336094,252.3,252.21,31.5540904]
[1737224350479,31.5540904,252.38,252.28,23.776884]
[1737224350676,0.74316138,252.37,252.28,23.776884]
[1737224350880,47.4094934,252.44,252.34,23.776884]
[1737224351074,0.74292778,252.43,252.35,31.5540904]
[1737224351276,0.74292778,252.43,252.33,31.5540904]
[1737224351585,31.5540904,252.39,252.27,31.5540904]
[1737224351884,0.74319119,252.38,252.28,4.267168]
[1737224352086,31.5540904,252.37,252.29,23.776884]
[1737224352281,0.7431823,252.36,252.29,55.3309744]
[1737224352674,0.74310664,252.4,252.29,55.3309744]
[1737224352890,31.5540904,252.39,252.29,55.3309744]
[1737224353073,0.74310266,252.38,252.29,55.3309744]
[1737224353269,0.74305975,252.4,252.32,23.776884]
[1737224353473,31.5540904,252.43,252.32,0.30310074]
[1737224353678,0.74293298,252.42,252.35,31.5540904]
[1737224353877,0.74293298,252.42,252.36,23.776884]
[1737224354375,31.5540904,252.45,252.36,23.776884]
[1737224354589,0.74291893,252.44,252.36,23.776884]
[1737224354793,31.5540904,252.51,252.42,23.776884]
[1737224355092,31.5540904,252.49,252.42,23.776884]
[1737224355270,0.74284357,252.48,252.4,23.776884]
[1737224355883,0.74284357,252.48,252.42,23.776884]
[1737224356092,0.74272312,252.58,252.47,23.776884]
[1737224356290,0.74245929,252.61,252.54,23.776884]
[1737224356588,0.74245929,252.61,252.56,23.776884]
[1737224356794,2.70747232,252.72,252.6,23.776884]
[1737224357003,0.74208679,252.71,252.62,31.5540904]
[1737224357373,0.0001,252.68,252.67,23.776884]